[Event "*** Titled Tuesday Blitz"]
[Site "Chess.com"]
[Date "2020.10.20"]
[Round "8"]
[White "swimmerchess"]
[Black "valeriocarnicelli"]
[Result "1-0"]
[WhiteElo "2779"]
[BlackElo "2593"]
[TimeControl "180+1"]
[EndTime "11:38:24 PDT"]
[Termination "swimmerchess won by resignation"]

1. e4 {[%clk 0:03:00.9]} 1... c5 {[%clk 0:02:59.5]} 2. Nf3 {[%clk 0:03:00.8]}
2... Nc6 {[%clk 0:02:59.6]} 3. Nc3 {[%clk 0:03:01]} 3... e6 {[%clk 0:02:58.5]}
4. d4 {[%clk 0:03:00.9]} 4... cxd4 {[%clk 0:02:59]} 5. Nxd4 {[%clk 0:03:01.8]}
5... Nf6 {[%clk 0:02:59.5]} 6. Ndb5 {[%clk 0:03:00.8]} 6... d6 {[%clk
0:02:59.5]} 7. Bf4 {[%clk 0:03:00.1]} 7... e5 {[%clk 0:03:00.1]} 8. Bg5 {[%clk
0:02:59.1]} 8... a6 {[%clk 0:03:00.3]} 9. Na3 {[%clk 0:02:58.7]} 9... b5 {[%clk
0:03:00.8]} 10. Nd5 {[%clk 0:02:56.5]} 10... Be7 {[%clk 0:03:01.1]} 11. Bxf6
{[%clk 0:02:56.7]} 11... Bxf6 {[%clk 0:03:02]} 12. c3 {[%clk 0:02:57.6]} 12...
O-O {[%clk 0:03:02]} 13. Nc2 {[%clk 0:02:58.2]} 13... Bg5 {[%clk 0:03:00.6]} 14.
a4 {[%clk 0:02:58.7]} 14... bxa4 {[%clk 0:03:00.5]} 15. Rxa4 {[%clk 0:02:59.6]}
15... a5 {[%clk 0:03:01.1]} 16. Bc4 {[%clk 0:03:00.2]} 16... g6 {[%clk
0:02:57.7]} 17. b4 {[%clk 0:02:53.6]} 17... Ne7 {[%clk 0:02:42.5]} 18. O-O
{[%clk 0:02:43.3]} 18... Bd7 {[%clk 0:02:33.9]} 19. b5 {[%clk 0:02:33.1]} 19...
Nxd5 {[%clk 0:02:17.6]} 20. Qxd5 {[%clk 0:02:34]} 20... Rc8 {[%clk 0:01:57.9]}
21. Rd1 {[%clk 0:01:59.8]} 21... Be7 {[%clk 0:01:48.1]} 22. Qd3 {[%clk 0:01:54]}
22... Qb6 {[%clk 0:01:44.8]} 23. Ne3 {[%clk 0:01:52.7]} 23... Be6 {[%clk
0:01:38.7]} 24. Nd5 {[%clk 0:01:38.2]} 24... Bxd5 {[%clk 0:01:38.7]} 25. Bxd5
{[%clk 0:01:39.1]} 25... Bd8 {[%clk 0:01:28.5]} 26. c4 {[%clk 0:01:14]} 26...
Qc5 {[%clk 0:01:26.2]} 27. g3 {[%clk 0:01:12.3]} 27... Bb6 {[%clk 0:01:26]} 28.
Ra2 {[%clk 0:01:09.2]} 28... Kg7 {[%clk 0:01:24.7]} 29. Kg2 {[%clk 0:01:06.6]}
29... f5 {[%clk 0:01:24.7]} 30. f3 {[%clk 0:01:05]} 30... Rf6 {[%clk 0:01:20.1]}
31. Qa3 {[%clk 0:00:42.7]} 31... fxe4 {[%clk 0:01:13.4]} 32. Bxe4 {[%clk
0:00:37.6]} 32... Qxa3 {[%clk 0:01:06.1]} 33. Rxa3 {[%clk 0:00:37.6]} 33... Rxc4
{[%clk 0:01:06.5]} 34. Rad3 {[%clk 0:00:31.9]} 34... Rd4 {[%clk 0:01:04.8]} 35.
Rxd4 {[%clk 0:00:28.9]} 35... Bxd4 {[%clk 0:01:04.9]} 36. Rc1 {[%clk 0:00:25.9]}
36... Bc5 {[%clk 0:00:59]} 37. Rb1 {[%clk 0:00:23]} 37... Bb6 {[%clk 0:00:57.7]}
38. Rc1 {[%clk 0:00:22.7]} 38... Bc5 {[%clk 0:00:46.9]} 39. Rb1 {[%clk
0:00:22.7]} 39... Rf8 {[%clk 0:00:44.3]} 40. b6 {[%clk 0:00:22.5]} 40... Rb8
{[%clk 0:00:44.2]} 41. b7 {[%clk 0:00:22.7]} 41... a4 {[%clk 0:00:43.1]} 42. Rb5
{[%clk 0:00:22.3]} 42... a3 {[%clk 0:00:27.4]} 43. Ra5 {[%clk 0:00:22.2]} 43...
d5 {[%clk 0:00:23]} 44. Bxd5 {[%clk 0:00:17.9]} 44... Bd6 {[%clk 0:00:23]} 45.
Kf2 {[%clk 0:00:17.9]} 45... Kf6 {[%clk 0:00:17.3]} 46. Ke3 {[%clk 0:00:17.9]}
46... Ke7 {[%clk 0:00:17.7]} 47. Ke4 {[%clk 0:00:18.2]} 47... h6 {[%clk
0:00:17.9]} 48. h4 {[%clk 0:00:18]} 48... Kd7 {[%clk 0:00:16.2]} 49. Ra6 {[%clk
0:00:18.4]} 49... Kc7 {[%clk 0:00:15.6]} 50. Rc6+ {[%clk 0:00:18.1]} 50... Kd7
{[%clk 0:00:15.6]} 51. Ra6 {[%clk 0:00:18]} 51... Kc7 {[%clk 0:00:15.3]} 52. g4
{[%clk 0:00:18.5]} 52... Kd7 {[%clk 0:00:15]} 53. g5 {[%clk 0:00:17.4]} 53...
hxg5 {[%clk 0:00:14]} 54. hxg5 {[%clk 0:00:18.3]} 54... Rf8 {[%clk 0:00:13.1]}
55. Kd3 {[%clk 0:00:18.3]} 55... Rb8 {[%clk 0:00:12.5]} 56. Kc4 {[%clk
0:00:18.6]} 56... Kc7 {[%clk 0:00:12.5]} 57. Kb5 {[%clk 0:00:18.2]} 57... Kd7
{[%clk 0:00:11.7]} 58. Kb6 {[%clk 0:00:17.9]} 58... Rf8 {[%clk 0:00:06.3]} 59.
Bc6+ {[%clk 0:00:14.4]} 59... Ke7 {[%clk 0:00:03.2]} 60. Ra8 {[%clk 0:00:12.7]}
60... Bb8 {[%clk 0:00:02.9]} 61. Bd5 {[%clk 0:00:11.5]} 61... Kd6 {[%clk
0:00:02.7]} 62. Be4 {[%clk 0:00:11.1]} 62... Bc7+ {[%clk 0:00:02.9]} 63. Kb5
{[%clk 0:00:11.4]} 63... Bb8 {[%clk 0:00:03]} 64. Ra6+ {[%clk 0:00:11.5]} 64...
Kc7 {[%clk 0:00:03.2]} 65. Rc6+ {[%clk 0:00:10.8]} 65... Kd7 {[%clk 0:00:03.5]}
66. Rxg6 {[%clk 0:00:11.1]} 66... a2 {[%clk 0:00:03.4]} 67. Ra6 {[%clk
0:00:11.6]} 67... Kc7 {[%clk 0:00:03.2]} 68. Rxa2 {[%clk 0:00:11.6]} 68... Rg8
{[%clk 0:00:04.1]} 69. g6 {[%clk 0:00:11.4]} 69... Rg7 {[%clk 0:00:05]} 70. Rc2+
{[%clk 0:00:11.2]} 70... Kd8 {[%clk 0:00:05.5]} 71. Rc8+ {[%clk 0:00:11.7]} 1-0

[Event "*** Titled Tuesday Blitz"]
[Site "Chess.com"]
[Date "2020.10.20"]
[Round "8"]
[White "MidnightFox"]
[Black "GothamChess"]
[Result "0-1"]
[WhiteElo "2430"]
[BlackElo "2604"]
[TimeControl "180+1"]
[EndTime "11:38:29 PDT"]
[Termination "GothamChess won by resignation"]

1. Nf3 {[%clk 0:02:55.3]} 1... f5 {[%clk 0:02:59.2]} 2. c4 {[%clk 0:02:53.9]}
2... Nf6 {[%clk 0:02:59.2]} 3. d4 {[%clk 0:02:51.1]} 3... g6 {[%clk 0:02:59.6]}
4. Nc3 {[%clk 0:02:46.2]} 4... Bg7 {[%clk 0:02:59.7]} 5. g3 {[%clk 0:02:46.1]}
5... O-O {[%clk 0:02:59.7]} 6. Bg2 {[%clk 0:02:46.6]} 6... b6 {[%clk 0:03:00.2]}
7. Ne5 {[%clk 0:02:39]} 7... c6 {[%clk 0:03:00.3]} 8. O-O {[%clk 0:02:34.5]}
8... Bb7 {[%clk 0:03:00.7]} 9. b3 {[%clk 0:02:31.8]} 9... d6 {[%clk 0:03:00.8]}
10. Nd3 {[%clk 0:02:29.4]} 10... e6 {[%clk 0:03:00.3]} 11. Bb2 {[%clk
0:02:27.4]} 11... Qe7 {[%clk 0:03:00.6]} 12. Rc1 {[%clk 0:02:26.5]} 12... Nbd7
{[%clk 0:02:59.5]} 13. e3 {[%clk 0:02:23.2]} 13... e5 {[%clk 0:02:59.2]} 14. Re1
{[%clk 0:02:18.9]} 14... e4 {[%clk 0:02:58]} 15. Nf4 {[%clk 0:02:17.1]} 15... g5
{[%clk 0:02:52.2]} 16. Nh5 {[%clk 0:02:15.7]} 16... Nxh5 {[%clk 0:02:52.1]} 17.
Qxh5 {[%clk 0:02:16.6]} 17... h6 {[%clk 0:02:50.9]} 18. Qe2 {[%clk 0:02:12.9]}
18... Nf6 {[%clk 0:02:49.1]} 19. Qc2 {[%clk 0:02:05.4]} 19... h5 {[%clk
0:02:40]} 20. b4 {[%clk 0:01:52.1]} 20... h4 {[%clk 0:02:35.8]} 21. b5 {[%clk
0:01:51.7]} 21... c5 {[%clk 0:02:29.6]} 22. d5 {[%clk 0:01:45.3]} 22... Ng4
{[%clk 0:02:21.8]} 23. h3 {[%clk 0:01:35]} 23... Ne5 {[%clk 0:02:20.5]} 24. Rcd1
{[%clk 0:00:59.3]} 24... Nd3 {[%clk 0:02:07.8]} 25. Rxd3 {[%clk 0:00:57.9]}
25... exd3 {[%clk 0:02:08.7]} 26. Qxd3 {[%clk 0:00:58.5]} 26... hxg3 {[%clk
0:02:08.7]} 27. fxg3 {[%clk 0:00:58.1]} 27... Rae8 {[%clk 0:02:09.3]} 28. Nd1
{[%clk 0:00:43.3]} 28... Bc8 {[%clk 0:02:06.2]} 29. Bxg7 {[%clk 0:00:41.3]}
29... Qxg7 {[%clk 0:02:07.1]} 30. Nf2 {[%clk 0:00:40.3]} 30... f4 {[%clk
0:02:04.2]} 31. g4 {[%clk 0:00:31.3]} 31... f3 {[%clk 0:02:01.3]} 32. Bf1 {[%clk
0:00:30.4]} 32... Rf6 {[%clk 0:01:53.6]} 33. e4 {[%clk 0:00:25.1]} 33... Rh6
{[%clk 0:01:53.1]} 34. Qxf3 {[%clk 0:00:23.3]} 34... Rf8 {[%clk 0:01:41.9]} 35.
Qg3 {[%clk 0:00:23.1]} 35... Qd4 {[%clk 0:01:35.5]} 36. Qe3 {[%clk 0:00:20.6]}
36... Qg7 {[%clk 0:00:52.1]} 37. Bg2 {[%clk 0:00:19.1]} 37... Bd7 {[%clk
0:00:45.7]} 38. Nh1 {[%clk 0:00:18.9]} 38... Qe5 {[%clk 0:00:33.9]} 39. Ng3
{[%clk 0:00:18.7]} 39... Rhf6 {[%clk 0:00:33.7]} 40. Nf5 {[%clk 0:00:17.6]}
40... Rg6 {[%clk 0:00:31.4]} 41. Rf1 {[%clk 0:00:16.2]} 41... Re8 {[%clk
0:00:30.5]} 42. Qf2 {[%clk 0:00:14.3]} 42... Kh7 {[%clk 0:00:19.8]} 43. Ne3
{[%clk 0:00:12.1]} 43... Rg7 {[%clk 0:00:16.7]} 44. Nf5 {[%clk 0:00:09.3]} 44...
Rf7 {[%clk 0:00:14.7]} 45. Qd2 {[%clk 0:00:08.5]} 45... Kg6 {[%clk 0:00:12.6]}
46. h4 {[%clk 0:00:08.2]} 46... Qf6 {[%clk 0:00:07.3]} 47. h5+ {[%clk
0:00:07.4]} 47... Kh7 {[%clk 0:00:07.5]} 48. Ne3 {[%clk 0:00:05.7]} 48... Qg7
{[%clk 0:00:04.6]} 49. Nf5 {[%clk 0:00:06.1]} 49... Qg8 {[%clk 0:00:04.2]} 50.
Qe3 {[%clk 0:00:06.2]} 50... Bxf5 {[%clk 0:00:03.6]} 51. gxf5 {[%clk 0:00:07.1]}
51... Qg7 {[%clk 0:00:03.8]} 52. Qf3 {[%clk 0:00:07.3]} 52... Qe5 {[%clk
0:00:03.6]} 53. Qg4 {[%clk 0:00:07.3]} 53... Rg8 {[%clk 0:00:03.9]} 54. f6
{[%clk 0:00:07.3]} 54... Rxf6 {[%clk 0:00:03.6]} 55. Rxf6 {[%clk 0:00:07]} 55...
Qxf6 {[%clk 0:00:04.5]} 56. Qd7+ {[%clk 0:00:06.5]} 56... Rg7 {[%clk 0:00:04.9]}
57. Qg4 {[%clk 0:00:07.1]} 57... Qd4+ {[%clk 0:00:04.3]} 58. Kh2 {[%clk
0:00:07.2]} 58... Qe5+ {[%clk 0:00:05.1]} 59. Kh1 {[%clk 0:00:07.6]} 59... Qf4
{[%clk 0:00:05.5]} 60. Qe6 {[%clk 0:00:07.3]} 60... Qc1+ {[%clk 0:00:04.2]} 61.
Kh2 {[%clk 0:00:07.8]} 61... Qf4+ {[%clk 0:00:04.7]} 62. Kg1 {[%clk 0:00:08.3]}
62... g4 {[%clk 0:00:05.1]} 63. h6 {[%clk 0:00:07.4]} 63... Qc1+ {[%clk
0:00:03.6]} 64. Kh2 {[%clk 0:00:07.3]} 64... Qxh6+ {[%clk 0:00:04.2]} 65. Qxh6+
{[%clk 0:00:07.7]} 65... Kxh6 {[%clk 0:00:05.1]} 66. Kg3 {[%clk 0:00:08.6]}
66... Kg5 {[%clk 0:00:05.7]} 67. Bf1 {[%clk 0:00:08.4]} 67... Re7 {[%clk
0:00:04.6]} 68. Be2 {[%clk 0:00:09]} 68... Rxe4 {[%clk 0:00:04.7]} 69. Bd1
{[%clk 0:00:09.5]} 69... Rd4 {[%clk 0:00:05]} 70. Be2 {[%clk 0:00:09.4]} 70...
Rd2 {[%clk 0:00:05.1]} 71. Bxg4 {[%clk 0:00:09.2]} 71... Rd3+ {[%clk 0:00:05.6]}
72. Bf3 {[%clk 0:00:09.7]} 72... Ra3 {[%clk 0:00:05.6]} 73. Kf2 {[%clk
0:00:09.5]} 73... Kf4 {[%clk 0:00:06.2]} 74. Be2 {[%clk 0:00:09.7]} 74... Rxa2
{[%clk 0:00:06.8]} 75. Ke1 {[%clk 0:00:10.5]} 75... Ke3 {[%clk 0:00:07.3]} 76.
Bd1 {[%clk 0:00:10.4]} 76... Ra1 {[%clk 0:00:07.7]} 77. Kf1 {[%clk 0:00:07.9]}
77... Rxd1+ {[%clk 0:00:08.6]} 0-1

[Event "*** Titled Tuesday Blitz"]
[Site "Chess.com"]
[Date "2020.10.20"]
[Round "8"]
[White "enriquetejedor"]
[Black "indfraeng"]
[Result "1/2-1/2"]
[WhiteElo "2452"]
[BlackElo "2344"]
[TimeControl "180+1"]
[EndTime "11:38:30 PDT"]
[Termination "Game drawn by repetition"]

1. e4 {[%clk 0:02:34.9]} 1... e5 {[%clk 0:02:59.1]} 2. Nf3 {[%clk 0:02:25.9]}
2... Nc6 {[%clk 0:02:58.7]} 3. Bc4 {[%clk 0:02:16.8]} 3... Bc5 {[%clk
0:02:57.2]} 4. O-O {[%clk 0:02:14.8]} 4... Nf6 {[%clk 0:02:51.8]} 5. d3 {[%clk
0:02:12.8]} 5... h6 {[%clk 0:02:51.7]} 6. Be3 {[%clk 0:02:09.1]} 6... Bxe3
{[%clk 0:02:44.7]} 7. fxe3 {[%clk 0:02:10]} 7... O-O {[%clk 0:02:41.6]} 8. Nc3
{[%clk 0:02:09.5]} 8... d6 {[%clk 0:02:41.3]} 9. h3 {[%clk 0:02:08.7]} 9... Be6
{[%clk 0:02:40.3]} 10. Bb3 {[%clk 0:02:08.1]} 10... Bxb3 {[%clk 0:02:36.3]} 11.
axb3 {[%clk 0:02:09]} 11... d5 {[%clk 0:02:36.7]} 12. exd5 {[%clk 0:02:07.1]}
12... Nxd5 {[%clk 0:02:37.6]} 13. Nxd5 {[%clk 0:02:07.2]} 13... Qxd5 {[%clk
0:02:38.5]} 14. e4 {[%clk 0:02:07.5]} 14... Qd6 {[%clk 0:02:36.4]} 15. Kh1
{[%clk 0:02:01.3]} 15... Nd4 {[%clk 0:02:35.9]} 16. Nd2 {[%clk 0:01:57.8]} 16...
b5 {[%clk 0:02:33.3]} 17. Rf2 {[%clk 0:01:54.8]} 17... Ne6 {[%clk 0:02:31.5]}
18. Nf1 {[%clk 0:01:54.1]} 18... Qd4 {[%clk 0:02:27.3]} 19. Qe1 {[%clk
0:01:52.4]} 19... c5 {[%clk 0:02:18]} 20. Ne3 {[%clk 0:01:51.3]} 20... g6 {[%clk
0:02:15]} 21. c3 {[%clk 0:01:36.9]} 21... Qxd3 {[%clk 0:01:55.5]} 22. Nd5 {[%clk
0:01:37.8]} 22... Nf4 {[%clk 0:01:48]} 23. Rd1 {[%clk 0:01:33.4]} 23... Qg3
{[%clk 0:01:45.9]} 24. Rfd2 {[%clk 0:00:39.5]} 24... Qxe1+ {[%clk 0:01:41.7]}
25. Rxe1 {[%clk 0:00:40.4]} 25... Rad8 {[%clk 0:01:38.1]} 26. Red1 {[%clk
0:00:39]} 26... Ne6 {[%clk 0:01:30.9]} 27. Ra1 {[%clk 0:00:36.7]} 27... f5
{[%clk 0:01:18.9]} 28. Rxa7 {[%clk 0:00:13.3]} 28... Kh8 {[%clk 0:00:59.8]} 29.
c4 {[%clk 0:00:04.5]} 29... bxc4 {[%clk 0:00:57]} 30. bxc4 {[%clk 0:00:05.4]}
30... fxe4 {[%clk 0:00:54.9]} 31. Re2 {[%clk 0:00:03.3]} 31... Nf4 {[%clk
0:00:54]} 32. Rxe4 {[%clk 0:00:01.7]} 32... Nxd5 {[%clk 0:00:54.4]} 33. cxd5
{[%clk 0:00:02.3]} 33... Rxd5 {[%clk 0:00:55.3]} 34. Re7 {[%clk 0:00:02.3]}
34... Rf5 {[%clk 0:00:51.4]} 35. Re6 {[%clk 0:00:02]} 35... Kg7 {[%clk
0:00:51.2]} 36. Ra4 {[%clk 0:00:02]} 36... Rf7 {[%clk 0:00:48.1]} 37. Rb6 {[%clk
0:00:02.5]} 37... Kh7 {[%clk 0:00:36.1]} 38. Raa6 {[%clk 0:00:02.7]} 38... Rg7
{[%clk 0:00:36.6]} 39. Re6 {[%clk 0:00:02.4]} 39... c4 {[%clk 0:00:35.2]} 40.
Rac6 {[%clk 0:00:02.4]} 40... Rd1+ {[%clk 0:00:24.8]} 41. Kh2 {[%clk 0:00:02.1]}
41... Rd2 {[%clk 0:00:25.7]} 42. Rxc4 {[%clk 0:00:01.8]} 42... Rxb2 {[%clk
0:00:20]} 43. Rxe5 {[%clk 0:00:02.2]} 43... Rf7 {[%clk 0:00:20.9]} 44. Re3
{[%clk 0:00:01.9]} 44... h5 {[%clk 0:00:20.7]} 45. Rg3 {[%clk 0:00:02.1]} 45...
Kh6 {[%clk 0:00:20.9]} 46. Rc6 {[%clk 0:00:02.4]} 46... Rg7 {[%clk 0:00:21.5]}
47. Rf3 {[%clk 0:00:02.8]} 47... Rbb7 {[%clk 0:00:18.8]} 48. Rf8 {[%clk
0:00:02.8]} 48... Rh7 {[%clk 0:00:18.6]} 49. Rg8 {[%clk 0:00:02.7]} 49... Rbg7
{[%clk 0:00:18.7]} 50. Re8 {[%clk 0:00:03.1]} 50... Re7 {[%clk 0:00:18.1]} 51.
Rf8 {[%clk 0:00:03.5]} 51... Ref7 {[%clk 0:00:18.3]} 52. Rb8 {[%clk 0:00:03.6]}
52... Rb7 {[%clk 0:00:18.1]} 53. Rbc8 {[%clk 0:00:03.5]} 53... Rbf7 {[%clk
0:00:16.8]} 54. Rd6 {[%clk 0:00:03.4]} 54... Rf2 {[%clk 0:00:15.8]} 55. Rcc6
{[%clk 0:00:03.2]} 55... Rg7 {[%clk 0:00:16.4]} 56. Rd5 {[%clk 0:00:03.1]} 56...
Re7 {[%clk 0:00:14.6]} 57. Rd3 {[%clk 0:00:01.8]} 57... Rg7 {[%clk 0:00:13.2]}
58. Rg3 {[%clk 0:00:02.1]} 58... Re2 {[%clk 0:00:12.5]} 59. Rc5 {[%clk 0:00:02]}
59... Re6 {[%clk 0:00:11.5]} 60. Rc4 {[%clk 0:00:02.2]} 60... Rf7 {[%clk
0:00:11.3]} 61. Rcc3 {[%clk 0:00:02.7]} 61... Rf2 {[%clk 0:00:11.5]} 62. Rce3
{[%clk 0:00:02.6]} 62... Ref6 {[%clk 0:00:09.6]} 63. Rd3 {[%clk 0:00:02.9]}
63... Ra6 {[%clk 0:00:09.6]} 64. Rc3 {[%clk 0:00:03.2]} 64... Raf6 {[%clk
0:00:09.9]} 65. Rb3 {[%clk 0:00:03.5]} 65... Re6 {[%clk 0:00:10.1]} 66. Ra3
{[%clk 0:00:03.9]} 66... Ref6 {[%clk 0:00:09.3]} 67. Ra8 {[%clk 0:00:04.3]}
67... Rf8 {[%clk 0:00:08.9]} 68. Ra6 {[%clk 0:00:04]} 68... R8f6 {[%clk
0:00:08.8]} 69. Ra4 {[%clk 0:00:04.4]} 69... R6f4 {[%clk 0:00:08.6]} 70. Raa3
{[%clk 0:00:04.3]} 70... Rf6 {[%clk 0:00:08]} 71. Rab3 {[%clk 0:00:04.4]} 71...
R6f5 {[%clk 0:00:08.5]} 72. Ra3 {[%clk 0:00:04.3]} 72... Rf6 {[%clk 0:00:09]}
1/2-1/2

[Event "*** Titled Tuesday Blitz"]
[Site "Chess.com"]
[Date "2020.10.20"]
[Round "8"]
[White "krasavetc"]
[Black "JiiHart"]
[Result "1-0"]
[WhiteElo "2329"]
[BlackElo "2076"]
[TimeControl "180+1"]
[EndTime "11:38:32 PDT"]
[Termination "krasavetc won by checkmate"]

1. c4 {[%clk 0:03:00.9]} 1... e5 {[%clk 0:02:59]} 2. e4 {[%clk 0:03:01.3]} 2...
Nf6 {[%clk 0:02:58.4]} 3. d4 {[%clk 0:03:00.8]} 3... Nxe4 {[%clk 0:02:51.2]} 4.
dxe5 {[%clk 0:02:57.8]} 4... Bb4+ {[%clk 0:02:47.4]} 5. Nd2 {[%clk 0:02:44.4]}
5... O-O {[%clk 0:02:38]} 6. a3 {[%clk 0:02:39.6]} 6... Bxd2+ {[%clk 0:02:30.5]}
7. Bxd2 {[%clk 0:02:37.2]} 7... d6 {[%clk 0:02:28.2]} 8. Nf3 {[%clk 0:02:34.7]}
8... dxe5 {[%clk 0:02:25.2]} 9. Be3 {[%clk 0:02:31.1]} 9... Qxd1+ {[%clk
0:02:03.3]} 10. Rxd1 {[%clk 0:02:08.4]} 10... Nc6 {[%clk 0:02:02.8]} 11. Bd3
{[%clk 0:02:06]} 11... Nd6 {[%clk 0:02:01.1]} 12. c5 {[%clk 0:01:52.8]} 12...
Nf5 {[%clk 0:02:01]} 13. Bxf5 {[%clk 0:01:47.3]} 13... Bxf5 {[%clk 0:02:00.9]}
14. O-O {[%clk 0:01:47.2]} 14... Rad8 {[%clk 0:01:57.9]} 15. b4 {[%clk
0:01:42.1]} 15... a6 {[%clk 0:01:54.8]} 16. a4 {[%clk 0:01:26.5]} 16... Bd3
{[%clk 0:01:44.5]} 17. Rfe1 {[%clk 0:01:08.7]} 17... e4 {[%clk 0:01:44.6]} 18.
Nd2 {[%clk 0:01:06.9]} 18... Nxb4 {[%clk 0:01:44]} 19. Nb3 {[%clk 0:01:00.8]}
19... Nc2 {[%clk 0:01:37.2]} 20. c6 {[%clk 0:00:45.8]} 20... Nxe1 {[%clk
0:01:31.4]} 21. Rxe1 {[%clk 0:00:45.6]} 21... b6 {[%clk 0:01:23]} 22. Nd4 {[%clk
0:00:43.9]} 22... g6 {[%clk 0:01:07.8]} 23. h3 {[%clk 0:00:39.9]} 23... Rfe8
{[%clk 0:01:03.5]} 24. Rc1 {[%clk 0:00:39.4]} 24... f5 {[%clk 0:01:02]} 25. g3
{[%clk 0:00:29.7]} 25... Rd5 {[%clk 0:00:56.8]} 26. a5 {[%clk 0:00:26.4]} 26...
b5 {[%clk 0:00:49.9]} 27. Nb3 {[%clk 0:00:24.7]} 27... Re6 {[%clk 0:00:33.5]}
28. Bf4 {[%clk 0:00:21.8]} 28... Bc4 {[%clk 0:00:27.2]} 29. Nd2 {[%clk
0:00:18.6]} 29... Rxc6 {[%clk 0:00:26.7]} 30. Nb3 {[%clk 0:00:17.5]} 30... Rd3
{[%clk 0:00:23]} 31. Nd2 {[%clk 0:00:16.5]} 31... Bd5 {[%clk 0:00:22.7]} 32. Re1
{[%clk 0:00:15.2]} 32... Rc2 {[%clk 0:00:19.3]} 33. Nf1 {[%clk 0:00:14.6]} 33...
c5 {[%clk 0:00:19]} 34. Ne3 {[%clk 0:00:14.1]} 34... Ra2 {[%clk 0:00:16.9]} 35.
g4 {[%clk 0:00:14.5]} 35... Rxa5 {[%clk 0:00:15.8]} 36. gxf5 {[%clk 0:00:14.3]}
36... gxf5 {[%clk 0:00:16.1]} 37. Nxf5 {[%clk 0:00:14.5]} 37... Kf7 {[%clk
0:00:12.4]} 38. Bg3 {[%clk 0:00:10.6]} 38... Rda3 {[%clk 0:00:12.1]} 39. Re2
{[%clk 0:00:07.4]} 39... Ra2 {[%clk 0:00:11.5]} 40. Re3 {[%clk 0:00:06.6]} 40...
R5a3 {[%clk 0:00:10.7]} 41. Nd6+ {[%clk 0:00:05.5]} 41... Ke6 {[%clk 0:00:09.1]}
42. Nxe4 {[%clk 0:00:01.7]} 42... Rxe3 {[%clk 0:00:08.8]} 43. Nxc5+ {[%clk
0:00:02.3]} 43... Kf5 {[%clk 0:00:07.5]} 44. fxe3 {[%clk 0:00:03.2]} 44... Rc2
{[%clk 0:00:06.4]} 45. Nxa6 {[%clk 0:00:01.4]} 45... b4 {[%clk 0:00:06.7]} 46.
Kf1 {[%clk 0:00:02.3]} 46... b3 {[%clk 0:00:06.9]} 47. Nb4 {[%clk 0:00:01.2]}
47... b2 {[%clk 0:00:06.2]} 48. Nxc2 {[%clk 0:00:02.1]} 48... b1=Q+ {[%clk
0:00:06.2]} 49. Ne1 {[%clk 0:00:03]} 49... Qc2 {[%clk 0:00:06.7]} 50. Nxc2
{[%clk 0:00:02.6]} 50... Ke4 {[%clk 0:00:07]} 51. Bf4 {[%clk 0:00:02.8]} 51...
Kf3 {[%clk 0:00:06]} 52. Nd4+ {[%clk 0:00:03.3]} 52... Ke4 {[%clk 0:00:03.6]}
53. Kf2 {[%clk 0:00:04.2]} 53... h5 {[%clk 0:00:03.1]} 54. h4 {[%clk 0:00:05.1]}
54... Be6 {[%clk 0:00:03]} 55. Nf3 {[%clk 0:00:05.3]} 55... Bg4 {[%clk
0:00:03.3]} 56. Ng5+ {[%clk 0:00:06.2]} 56... Kf5 {[%clk 0:00:03.5]} 57. Nf7
{[%clk 0:00:06.8]} 57... Kg6 {[%clk 0:00:03.8]} 58. Nh6 {[%clk 0:00:07]} 58...
Kf6 {[%clk 0:00:03.4]} 59. Nxg4+ {[%clk 0:00:05.8]} 59... hxg4 {[%clk
0:00:04.1]} 60. e4 {[%clk 0:00:06.7]} 60... Kg6 {[%clk 0:00:04.1]} 61. Kg3
{[%clk 0:00:07.6]} 61... Kh5 {[%clk 0:00:04.2]} 62. e5 {[%clk 0:00:08.1]} 62...
Kg6 {[%clk 0:00:04.5]} 63. e6 {[%clk 0:00:09]} 63... Kf6 {[%clk 0:00:04.5]} 64.
Kxg4 {[%clk 0:00:09.3]} 64... Kxe6 {[%clk 0:00:04.9]} 65. h5 {[%clk 0:00:10.2]}
65... Kf7 {[%clk 0:00:05.5]} 66. Kg5 {[%clk 0:00:09]} 66... Kg8 {[%clk
0:00:06.3]} 67. Kg6 {[%clk 0:00:08.7]} 67... Kh8 {[%clk 0:00:06.5]} 68. h6
{[%clk 0:00:09]} 68... Kg8 {[%clk 0:00:06.6]} 69. h7+ {[%clk 0:00:07]} 69... Kf8
{[%clk 0:00:06.4]} 70. Kf6 {[%clk 0:00:06.2]} 70... Ke8 {[%clk 0:00:06.1]} 71.
Ke6 {[%clk 0:00:05.8]} 71... Kd8 {[%clk 0:00:06.1]} 72. h8=R# {[%clk 0:00:04.3]}
1-0